[Event "10th Cesme Open-A 2024"]
[Site "Cesme"]
[Date "2024.06.25"]
[Round "3"]
[White "Maruflu, Enes Yusuf"]
[Black "Ebrahimi Rashti, Asal"]
[Result "1/2-1/2"]
[ECO "C77"]
[WhiteElo "2141"]
[BlackElo "2001"]
[Annotator "RC"]
[PlyCount "105"]
[EventDate "2024.06.23"]
[EventType "swiss"]
[EventCountry "TUR"]
[SourceTitle "playchess.com"]
[Source "ChessBase"]
[SourceQuality "1"]
[TimeControl "5400+30"]

1. e4 {[%emt 0:02:00]} e5 {[%emt 0:01:00]} 2. Nf3 {[%emt 0:00:30]} Nc6 {[%emt 0:00:30]} 3. Bb5 {[%emt 0:00:30]} a6 {[%emt 0:00:30]} 4. Ba4 {[%emt 0:00:00]} Nf6 {[%emt 0:00:00]} 5. Nc3 {[%emt 0:01:00]} b5 {[%emt 0:12:00]} 6. Bb3 {[%emt 0:00:30]} Be7 {[%emt 0:00:00]} 7. d3 {[%emt 0:00:30]} d6 {[%emt 0:01:00]} 8. a3 {[%emt 0:00:30]} Be6 {[%emt 0:08:30]} 9. Nd5 {[%emt 0:02:30]} Na5 {[%emt 0:03:30]} 10. Ba2 {[%emt 0:06:30]} Nxd5 {[%emt 0:04:30]} 11. Bxd5 {[%emt 0:00:30]} Bxd5 {[%emt 0:00:30]} 12. exd5 {[%emt 0:00:30]} Nb7 {[%emt 0:00:30]} 13. b4 {[%emt 0:00:30]} f5 {[%emt 0:00:30]} 14. Ng5 {[%emt 0:01:30]} Bf6 {[%emt 0:19:30]} 15. Ne6 {[%emt 0:08:30]} Qe7 {[%emt 0:01:30]} 16. Bg5 {[%emt 0:08:30]} Bxg5 {[%emt 0:01:30]} 17. Qh5+ {[%emt 0:00:30]} g6 {[%emt 0:00:30]} 18. Qxg5 {[%emt 0:00:00]} Qxg5 {[%emt 0:00:00]} 19. Nxg5 {[%emt 0:00:00]} Kd7 {[%emt 0:02:00]} 20. Kd2 {[%emt 0:01:30]} h6 {[%emt 0:02:30]} 21. Nf3 {[%emt 0:00:30]} g5 {[%emt 0:01:30]} 22. a4 {[%emt 0:05:30]} a5 {[%emt 0:06:30]} 23. axb5 {[%emt 0:05:30]} axb4 {[%emt 0:00:30]} 24. Rhb1 {[%emt 0:05:30]} Rxa1 {[%emt 0:03:30]} 25. Rxa1 {[%emt 0:01:30]} Nc5 {[%emt 0:30:30]} 26. d4 {[%emt 0:04:30]} Ne4+ {[%emt 0:00:00]} 27. Kc1 {[%emt 0:05:30]} Re8 {[%emt 0:00:00]} 28. Ra7 {[%emt 0:08:30]} Rb8 {[%emt 0:00:00]} 29. dxe5 {[%emt 0:03:30]} dxe5 {[%emt 0:00:00]} 30. Nxe5+ {[%emt 0:00:30]} Kd6 {[%emt 0:00:00]} 31. Nf7+ {[%emt 0:00:30]} Kxd5 {[%emt 0:00:00]} 32. Nxh6 {[%emt 0:00:30]} Nxf2 {[%emt 0:00:00]} 33. Nxf5 {[%emt 0:00:30]} Rxb5 {[%emt 0:00:00]} 34. Rxc7 {[%emt 0:00:30]} Ke5 {[%emt 0:03:09]} 35. Ne3 {[%emt 0:09:04]} Kf4 {[%emt 0:01:00]} 36. Kd2 {[%emt 0:03:03]} Ne4+ {[%emt 0:00:22]} 37. Ke2 {[%emt 0:00:00]} Nd6 {[%emt 0:00:40]} 38. Re7 {[%emt 0:02:23]} Re5 {[%emt 0:00:07]} 39. g3+ {[%emt 0:04:20]} Ke4 {[%emt 0:00:00]} 40. Rxe5+ {[%emt 0:03:38]} Kxe5 {[%emt 0:00:02]} 41. Kd3 {[%emt 0:00:12]} Nb5 {[%emt 0:01:22]} 42. Kc4 {[%emt 0:02:45]} Nd4 {[%emt 0:00:15]} 43. Ng4+ {[%emt 0:00:30]} Ke4 {[%emt 0:00:30]} 44. Nf6+ {[%emt 0:00:39]} Ke5 {[%emt 0:00:09]} 45. Nd7+ {[%emt 0:02:19]} Ke4 {[%emt 0:00:30]} 46. Nc5+ {[%emt 0:00:00]} Ke3 {[%emt 0:00:38]} 47. h4 {[%emt 0:00:20]} gxh4 {[%emt 0:00:30]} 48. gxh4 {[%emt 0:00:00]} Nxc2 {[%emt 0:01:48]} 49. h5 {[%emt 0:00:00]} Nd4 {[%emt 0:00:09]} 50. h6 {[%emt 0:01:11]} Nf5 {[%emt 0:00:30]} 51. h7 {[%emt 0:00:30]} Nd6+ {[%emt 0:00:00]} 52. Kxb4 {[%emt 0:00:49]} Nf7 {[%emt 0:00:00]} 53. Ne6 {[%emt 0:00:26]} 1/2-1/2

[Event "10th Cesme Open-A 2024"]
[Site "Cesme"]
[Date "2024.06.25"]
[Round "3"]
[White "Zeynalli, Rashad"]
[Black "Schekachikhin, Maksim"]
[Result "0-1"]
[ECO "A46"]
[WhiteElo "2127"]
[BlackElo "2343"]
[Annotator "RC"]
[PlyCount "82"]
[EventDate "2024.06.23"]
[EventType "swiss"]
[EventCountry "TUR"]
[SourceTitle "playchess.com"]
[Source "ChessBase"]
[SourceQuality "1"]
[TimeControl "5400+30"]

1. d4 {[%emt 0:01:00]} Nf6 {[%emt 0:02:00]} 2. Bf4 {[%emt 0:00:30]} e6 {[%emt 0:00:30]} 3. e3 {[%emt 0:00:00]} c5 {[%emt 0:00:30]} 4. Nf3 {[%emt 0:00:00]} Nc6 {[%emt 0:00:30]} 5. c3 {[%emt 0:00:30]} Nh5 {[%emt 0:01:30]} 6. Bg5 {[%emt 0:01:30]} Qb6 {[%emt 0:00:30]} 7. Nbd2 {[%emt 0:00:30]} h6 {[%emt 0:06:30]} 8. Nc4 {[%emt 0:00:30]} Qc7 {[%emt 0:01:30]} 9. Bh4 {[%emt 0:00:30]} g5 {[%emt 0:03:30]} 10. g4 {[%emt 0:00:30]} gxh4 {[%emt 0:02:30]} 11. gxh5 {[%emt 0:00:30]} d5 {[%emt 0:04:30]} 12. Nce5 {[%emt 0:02:30]} Nxe5 {[%emt 0:08:30]} 13. Nxe5 {[%emt 0:03:30]} Bd6 {[%emt 0:04:30]} 14. Qa4+ {[%emt 0:03:30]} Kd8 {[%emt 0:03:30]} 15. f4 {[%emt 0:04:30]} Rg8 {[%emt 0:16:30]} 16. Kf2 {[%emt 0:05:30]} Bxe5 {[%emt 0:10:30]} 17. dxe5 {[%emt 0:05:30]} Bd7 {[%emt 0:00:30]} 18. Qc2 {[%emt 0:05:30]} Bc6 {[%emt 0:03:30]} 19. Qh7 {[%emt 0:26:30]} Ke7 {[%emt 0:00:00]} 20. Bd3 {[%emt 0:02:30]} d4 {[%emt 0:05:00]} 21. Rhg1 {[%emt 0:02:30]} dxe3+ {[%emt 0:02:30]} 22. Ke2 {[%emt 0:02:30]} Rxg1 {[%emt 0:07:43]} 23. Rxg1 {[%emt 0:00:00]} c4 {[%emt 0:00:28]} 24. Bg6 {[%emt 0:08:00]} Rf8 {[%emt 0:00:29]} 25. Qg7 {[%emt 0:06:36]} Qd7 {[%emt 0:01:48]} 26. Kxe3 {[%emt 0:02:46]} Qd5 {[%emt 0:01:43]} 27. Rf1 {[%emt 0:00:57]} Qg2 {[%emt 0:05:29]} 28. Rf2 {[%emt 0:05:10]} Qd5 {[%emt 0:04:12]} 29. Ke2 {[%emt 0:06:23]} Ke8 {[%emt 0:02:06]} 30. Bc2 {[%emt 0:00:36]} Qh1 {[%emt 0:00:47]} 31. Kd2 {[%emt 0:00:55]} Ke7 {[%emt 0:00:37]} 32. Qf6+ {[%emt 0:00:30]} Kd7 {[%emt 0:00:00]} 33. f5 {[%emt 0:00:34]} Re8 {[%emt 0:01:37]} 34. Qxf7+ {[%emt 0:00:57]} Kc8 {[%emt 0:00:07]} 35. Ke3 {[%emt 0:03:09]} Qc1+ {[%emt 0:01:07]} 36. Kd4 {[%emt 0:00:01]} Rd8+ {[%emt 0:00:30]} 37. Kxc4 {[%emt 0:00:36]} Qxb2 {[%emt 0:00:39]} 38. Qxe6+ {[%emt 0:00:37]} Kb8 {[%emt 0:00:05]} 39. Qd6+ {[%emt 0:01:09]} Rxd6 {[%emt 0:00:30]} 40. exd6 {[%emt 0:00:03]} Qb5+ {[%emt 0:00:11]} 41. Kd4 {[%emt 0:00:30]} Qb6+ {[%emt 0:00:00]} 0-1

[Event "10th Cesme Open-A 2024"]
[Site "Cesme"]
[Date "2024.06.25"]
[Round "3"]
[White "Demirtas, Alper"]
[Black "Karaoglan, Kivanc"]
[Result "1/2-1/2"]
[ECO "E04"]
[WhiteElo "2057"]
[BlackElo "2274"]
[Annotator "RC"]
[PlyCount "104"]
[EventDate "2024.06.23"]
[EventType "swiss"]
[EventCountry "TUR"]
[SourceTitle "playchess.com"]
[Source "ChessBase"]
[SourceQuality "1"]
[TimeControl "5400+30"]

1. Nf3 {[%emt 0:01:00]} d5 {[%emt 0:01:00]} 2. d4 {[%emt 0:00:00]} Nf6 {[%emt 0:01:30]} 3. c4 {[%emt 0:00:00]} e6 {[%emt 0:00:30]} 4. g3 {[%emt 0:00:30]} dxc4 {[%emt 0:00:00]} 5. Bg2 {[%emt 0:00:00]} c5 {[%emt 0:01:00]} 6. O-O {[%emt 0:05:00]} Nc6 {[%emt 0:00:30]} 7. dxc5 {[%emt 0:04:30]} Bxc5 {[%emt 0:00:30]} 8. Qxd8+ {[%emt 0:02:30]} Kxd8 {[%emt 0:00:30]} 9. Nbd2 {[%emt 0:02:30]} Ke7 {[%emt 0:00:30]} 10. Nxc4 {[%emt 0:02:30]} Bd7 {[%emt 0:00:00]} 11. Be3 {[%emt 0:09:30]} Bxe3 {[%emt 0:02:00]} 12. Nxe3 {[%emt 0:00:00]} Rac8 {[%emt 0:05:30]} 13. Rac1 {[%emt 0:03:00]} Rhd8 {[%emt 0:08:30]} 14. Rfd1 {[%emt 0:03:30]} Be8 {[%emt 0:09:30]} 15. Rxd8 {[%emt 0:03:30]} Rxd8 {[%emt 0:01:30]} 16. Kf1 {[%emt 0:02:30]} Nd5 {[%emt 0:12:30]} 17. Nc4 {[%emt 0:10:30]} f6 {[%emt 0:03:30]} 18. a3 {[%emt 0:03:30]} e5 {[%emt 0:13:30]} 19. e4 {[%emt 0:08:30]} Nc7 {[%emt 0:02:30]} 20. Ne3 {[%emt 0:01:30]} g6 {[%emt 0:03:30]} 21. Ke1 {[%emt 0:02:30]} Bf7 {[%emt 0:01:30]} 22. Bf1 {[%emt 0:01:30]} a6 {[%emt 0:05:30]} 23. Bc4 {[%emt 0:01:30]} Bxc4 {[%emt 0:02:30]} 24. Rxc4 {[%emt 0:01:30]} Ke6 {[%emt 0:00:30]} 25. Nd2 {[%emt 0:02:30]} Rd4 {[%emt 0:05:37]} 26. Rc1 {[%emt 0:03:30]} Rd3 {[%emt 0:02:45]} 27. Ke2 {[%emt 0:03:30]} Rd7 {[%emt 0:00:32]} 28. Nb3 {[%emt 0:04:27]} Nd4+ {[%emt 0:00:34]} 29. Nxd4+ {[%emt 0:00:02]} exd4 {[%emt 0:00:15]} 30. Nc4 {[%emt 0:00:59]} f5 {[%emt 0:05:18]} 31. Kd3 {[%emt 0:08:37]} fxe4+ {[%emt 0:01:46]} 32. Kxe4 {[%emt 0:00:30]} Ne8 {[%emt 0:00:52]} 33. Re1 {[%emt 0:02:29]} d3 {[%emt 0:05:44]} 34. Kf3+ {[%emt 0:01:09]} Kf6 {[%emt 0:00:53]} 35. Rxe8 {[%emt 0:00:56]} d2 {[%emt 0:00:30]} 36. Nxd2 {[%emt 0:00:30]} Rxd2 {[%emt 0:00:30]} 37. Re2 {[%emt 0:00:00]} Rd3+ {[%emt 0:00:00]} 38. Re3 {[%emt 0:00:16]} Rd2 {[%emt 0:00:00]} 39. b3 {[%emt 0:00:45]} Ra2 {[%emt 0:00:29]} 40. a4 {[%emt 0:00:30]} Rb2 {[%emt 0:00:30]} 41. g4 {[%emt 0:00:00]} g5 {[%emt 0:01:21]} 42. Kg3 {[%emt 0:00:09]} Rb1 {[%emt 0:00:54]} 43. h3 {[%emt 0:01:03]} h6 {[%emt 0:02:15]} 44. Kf3 {[%emt 0:02:01]} Rb2 {[%emt 0:00:12]} 45. Kg3 {[%emt 0:00:32]} Rb1 {[%emt 0:00:30]} 46. Kg2 {[%emt 0:00:39]} Kf7 {[%emt 0:00:27]} 47. Rd3 {[%emt 0:03:35]} Ke6 {[%emt 0:00:30]} 48. Rd8 {[%emt 0:00:41]} Rxb3 {[%emt 0:01:38]} 49. Rh8 {[%emt 0:00:01]} Rb4 {[%emt 0:00:42]} 50. Rxh6+ {[%emt 0:00:04]} Kf7 {[%emt 0:01:23]} 51. Rh7+ {[%emt 0:00:15]} Kf6 {[%emt 0:00:36]} 52. Kg3 {[%emt 0:00:37]} b6 {[%emt 0:00:43]} 1/2-1/2

[Event "10th Cesme Open-A 2024"]
[Site "Cesme"]
[Date "2024.06.25"]
[Round "3"]
[White "Demirbag, Alihan"]
[Black "Annaberdiyev, Meylis"]
[Result "1-0"]
[ECO "B25"]
[WhiteElo "2055"]
[BlackElo "2467"]
[Annotator "TA"]
[PlyCount "99"]
[EventDate "2024.06.23"]
[EventType "swiss"]
[EventCountry "TUR"]
[SourceTitle "playchess.com"]
[Source "ChessBase"]
[SourceQuality "1"]
[TimeControl "5400+30"]

{[%evp 21,99,-5,25,22,33,30,31,31,30,34,70,64,73,74,75,87,98,104,91,11,0,0,0,-18,-8,-60,0,0,0,0,0,0,117,110,122,135,167,169,304,151,147,143,150,164,153,153,182,158,470,297,354,314,470,483,1327,558,2600,2365,4718,4817,2220,1740,29977,5702,5200,4829,29974,29974,29983,29984,29984,29985,29974,29959,29990,29991,29991,29992,29992,29993]} 1. e4 {[%emt 0:01:00]} d6 {[%emt 0:02:00]} 2. Nc3 {[%emt 0:01:30]} Nf6 {[%emt 0:01:30]} 3. g3 {[%emt 0:01:30]} c5 {[%emt 0:03:30]} 4. Bg2 {[%emt 0:00:30]} Nc6 {[%emt 0:00:00]} 5. d3 {[%emt 0:03:30]} g6 {[%emt 0:01:00]} 6. f4 {[%emt 0:01:30]} Bg7 {[%emt 0:01:30]} 7. Nf3 {[%emt 0:00:30]} Rb8 {[%emt 0:04:30]} 8. O-O {[%emt 0:02:30]} O-O {[%emt 0:02:30]} 9. h3 {[%emt 0:02:30]} b5 {[%emt 0:01:30][%cal Bb7b5,Bb5b4][%mdl 32]} 10. g4 {[%emt 0:00:30]} b4 {[%emt 0:00:00]} 11. Ne2 {[%emt 0:00:30]} c4 {[%emt 0:00:00]} 12. Be3 {[%emt 0:17:30] Prevents Qb6.} Ba6 {[%emt 0:11:30]} 13. Re1 {[%emt 0:11:30]} Qa5 {[%emt 0:12:30]} 14. Ng3 {[%emt 0:07:30] White is slightly better.} cxd3 {[%emt 0:06:30]} 15. cxd3 {[%emt 0:00:30][%cal Bc2d3,Bd3d4,Bd4d5][%mdl 32]} Qb5 {[%emt 0:00:30]} 16. d4 {[%emt 0:02:30]} Rbc8 {[%emt 0:06:30]} 17. d5 {[%emt 0:04:30]} Na5 {[%emt 0:00:30]} 18. Bxa7 {[%emt 0:01:30]} Nd7 {[%emt 0:00:30]} 19. Bd4 {[%emt 0:01:30]} Bxd4+ {[%emt 0:00:00]} 20. Nxd4 {[%emt 0:09:30]} (20. Qxd4 $16 Rc2 21. Red1) 20... Qb6 $11 {[%emt 0:00:00] ...Nc5 is the strong threat.} 21. Kh2 {[%emt 0:02:30]} Nc5 {[%emt 0:05:30]} 22. Re3 {[%emt 0:04:30] Wards off Nd3} Nc4 {[%emt 0:07:30][%csl LRb2,LRe3]} 23. Re2 {[%emt 0:00:30]} (23. Rf3 $11) 23... e5 {[%emt 0:00:30]} ({Better is} 23... Nxb2 $1 $15 24. Rxb2 Nd3) 24. dxe6 {[%emt 0:01:30]} fxe6 {[%emt 0:09:30]} 25. f5 {[%emt 0:00:30]} Ne5 {[%emt 0:05:18]} 26. Rd2 {[%emt 0:02:43]} exf5 {[%emt 0:00:11]} (26... Nc4 $1 $11) 27. exf5 $16 {[%emt 0:02:42]} Bb7 {[%emt 0:00:01]} 28. Nf3 {[%emt 0:02:02]} Bxf3 {[%emt 0:02:19]} 29. Bxf3 {[%emt 0:00:30]} Ncd3 {[%emt 0:00:00]} (29... Nxf3+ $142 30. Qxf3 Nd7 31. Qd5+ Kg7) 30. Qb3+ {[%emt 0:03:01]} (30. Rxd3 $18 Qf2+ 31. Kh1 Nxd3 32. Qxd3 Qxb2 33. Rf1) 30... Kg7 {[%emt 0:00:51]} 31. Rxd3 {[%emt 0:00:01] Strongly threatening Re3.} Qf2+ {[%emt 0:00:42]} 32. Bg2 {[%emt 0:00:30]} Rc2 {[%emt 0:00:30] [#]} 33. Rg1 {[%emt 0:00:00][%cal Ob3d5] aiming for Qd5!} Rxb2 {[%emt 0:00:19]} 34. Qd5 {[%emt 0:00:21] Threatens to win with Rb3.} Rc2 $2 {[%emt 0:04:59] This move loses the game for Black.} (34... Nxd3 $16 35. Qxd3 Qf4) 35. Qxd6 {[%emt 0:06:47]} Nxd3 {[%emt 0:07:21]} 36. Qxd3 {[%emt 0:00:01] Hoping for Ne4.} Rc3 {[%emt 0:00:35]} (36... Rd2 $142 37. Qe4 Qc5) 37. Qd6 $18 {[%emt 0:00:46]} Qxa2 {[%emt 0:01:43]} (37... Qc5 $142 38. f6+ Rxf6 39. Qxf6+ Kxf6 40. Ne4+ Ke5 41. Nxc5 Rxc5 42. Re1+ Kd6) 38. Qxb4 {[%emt 0:01:09]} (38. Qd4+ $142 Kh6 39. Nh5 (39. Qxb4 Rfc8 $18) 39... Rxf5 40. Qg7+ (40. gxf5 Qf7 $18) (40. Qxb4 Qa5 $14) 40... Kg5 41. Qe7+ (41. gxf5 Qe2 $18) 41... Kh6 42. gxf5 gxf5 43. Nf4 (43. Qxb4 Rf3 $18)) 38... Qd2 {[%emt 0:01:21] [#]} 39. Rd1 $3 {[%emt 0:03:07][%mdl 512]} Qxd1 {[%emt 0:00:50]} (39... Qe3 40. Ne4) 40. Qxc3+ {[%emt 0:00:30]} Kg8 {[%emt 0:00:00]} 41. Qe5 {[%emt 0:00:35] Intending Bd5+ and mate.} Qc2 {[%emt 0:01:02]} 42. Qe6+ {[%emt 0:03:05]} (42. f6 $142 h6 43. Ne2 Kh8 44. Qe7 Rg8 45. Bd5 (45. f7 Qc4 46. Qf6+ Kh7 47. Nf4 Qa2 48. Ne6 Qxe6 49. Qxe6 Rd8) 45... Qc8 46. Bxg8 Qb8+ 47. Kg1) 42... Kg7 {[%emt 0:00:36]} 43. Qe7+ {[%emt 0:00:30]} Rf7 {[%emt 0:00:14]} 44. f6+ {[%emt 0:01:27][%cal Bf5f6,Bf6f7][%mdl 32] White mates.} Kg8 {[%emt 0:00:30]} 45. Qe8+ {[%emt 0:00:31]} Rf8 {[%emt 0:00:00]} 46. Qe6+ {[%emt 0:00:12]} Rf7 {[%emt 0:00:00]} 47. Ne4 {[%emt 0:00:42]} Qc1 {[%emt 0:00:00]} 48. Qe8+ {[%emt 0:00:32]} Rf8 {[%emt 0:00:28]} 49. f7+ {[%emt 0:00:30]} Kg7 {[%emt 0:00:30]} 50. Qe5+ {[%emt 0:00:00] Weighted Error Value: White=0.60/Black=0.75.  Loses game:     	---       	Black=1      Mistake:       	White=4     	Black=5      Inaccurate:     	White=1     	Black=3      OK:         	White=10    	Black=8      Best:        	White=1     	Black=3} 1-0

[Event "10th Cesme Open-A 2024"]
[Site "Cesme"]
[Date "2024.06.25"]
[Round "3"]
[White "Yildiz, Serdar Murat"]
[Black "Taspinar, Yanki"]
[Result "0-1"]
[ECO "C56"]
[WhiteElo "2026"]
[BlackElo "2309"]
[Annotator "RC"]
[PlyCount "70"]
[EventDate "2024.06.23"]
[EventType "swiss"]
[EventCountry "TUR"]
[SourceTitle "playchess.com"]
[Source "ChessBase"]
[SourceQuality "1"]
[TimeControl "5400+30"]

1. e4 {[%emt 0:01:00]} e5 {[%emt 0:05:00]} 2. Nf3 {[%emt 0:00:30]} Nc6 {[%emt 0:00:00]} 3. Bc4 {[%emt 0:00:00]} Nf6 {[%emt 0:00:00]} 4. d4 {[%emt 0:00:00]} exd4 {[%emt 0:00:30]} 5. e5 {[%emt 0:00:00]} Ne4 {[%emt 0:00:00]} 6. Qe2 {[%emt 0:00:00]} Nc5 {[%emt 0:00:00]} 7. O-O {[%emt 0:00:30]} Ne6 {[%emt 0:00:30]} 8. Bxe6 {[%emt 0:00:30]} dxe6 {[%emt 0:00:30]} 9. Rd1 {[%emt 0:02:30]} b6 {[%emt 0:01:30]} 10. Nc3 {[%emt 0:15:30]} Bb7 {[%emt 0:23:30]} 11. Nb5 {[%emt 0:13:30]} Bc5 {[%emt 0:18:30]} 12. c3 {[%emt 0:17:30]} a6 {[%emt 0:24:30]} 13. cxd4 {[%emt 0:05:30]} Be7 {[%emt 0:01:30]} 14. d5 {[%emt 0:08:30]} exd5 {[%emt 0:00:30]} 15. Nbd4 {[%emt 0:10:30]} O-O {[%emt 0:20:16]} 16. Bf4 {[%emt 0:11:55]} Nxd4 {[%emt 0:01:29]} 17. Nxd4 {[%emt 0:00:13]} Bc5 {[%emt 0:00:08]} 18. e6 {[%emt 0:04:44]} Qe7 {[%emt 0:00:23]} 19. Be5 {[%emt 0:03:18]} Bxd4 {[%emt 0:00:37]} 20. exf7+ {[%emt 0:00:32]} Rxf7 21. Rxd4 {[%emt 0:00:30]} Re8 {[%emt 0:00:45]} 22. Re1 {[%emt 0:01:05]} Rf5 {[%emt 0:00:44]} 23. f4 {[%emt 0:00:08]} c5 {[%emt 0:00:29]} 24. Qg4 {[%emt 0:01:01]} Qf7 {[%emt 0:00:35]} 25. Rdd1 {[%emt 0:00:39]} Qg6 {[%emt 0:00:32]} 26. Qf3 {[%emt 0:02:17]} Rf7 {[%emt 0:00:29]} 27. Rd2 {[%emt 0:00:59]} d4 {[%emt 0:00:13]} 28. Qb3 {[%emt 0:00:05]} Qe6 {[%emt 0:01:10]} 29. Qg3 {[%emt 0:00:22]} Qg6 {[%emt 0:00:21]} 30. Qb3 {[%emt 0:00:04]} h6 {[%emt 0:00:14]} 31. Rde2 {[%emt 0:01:09]} Kh7 {[%emt 0:00:21]} 32. a4 {[%emt 0:00:11]} d3 {[%emt 0:00:41]} 33. Rf2 {[%emt 0:00:58]} Rxf4 {[%emt 0:00:24]} 34. Rd2 {[%emt 0:00:24]} Rg4 {[%emt 0:00:35]} 35. g3 {[%emt 0:00:40]} Re4 {[%emt 0:00:24]} 0-1

[Event "10th Cesme Open-A 2024"]
[Site "Cesme"]
[Date "2024.06.25"]
[Round "3"]
[White "Nazarian, Arash"]
[Black "Ozkan, Ervin"]
[Result "0-1"]
[ECO "C42"]
[WhiteElo "2007"]
[BlackElo "2147"]
[Annotator "RC"]
[PlyCount "126"]
[EventDate "2024.06.23"]
[EventType "swiss"]
[EventCountry "TUR"]
[SourceTitle "playchess.com"]
[Source "ChessBase"]
[SourceQuality "1"]
[TimeControl "5400+30"]

1. e4 {[%emt 0:01:00]} e5 {[%emt 0:03:00]} 2. Nf3 {[%emt 0:00:00]} Nf6 {[%emt 0:00:30]} 3. Nxe5 {[%emt 0:00:00]} d6 {[%emt 0:00:30]} 4. Nf3 {[%emt 0:00:30]} Nxe4 {[%emt 0:00:00]} 5. Nc3 {[%emt 0:00:30]} Nxc3 {[%emt 0:00:00]} 6. dxc3 {[%emt 0:00:00]} Be7 {[%emt 0:00:30]} 7. Be3 {[%emt 0:00:00]} Nc6 {[%emt 0:00:30]} 8. Qd2 {[%emt 0:00:00]} Be6 {[%emt 0:00:30]} 9. O-O-O {[%emt 0:00:00]} Qd7 {[%emt 0:00:00]} 10. Kb1 {[%emt 0:00:30]} Bf6 {[%emt 0:00:00]} 11. Nd4 {[%emt 0:02:30]} Nxd4 {[%emt 0:03:30]} 12. Bxd4 {[%emt 0:00:00]} Bxd4 {[%emt 0:04:30]} 13. Qxd4 {[%emt 0:01:00]} O-O {[%emt 0:00:30]} 14. h4 {[%emt 0:01:30]} Rfd8 {[%emt 0:02:30]} 15. h5 {[%emt 0:01:30]} h6 {[%emt 0:00:30]} 16. Be2 {[%emt 0:03:30]} c5 {[%emt 0:01:30]} 17. Qf4 {[%emt 0:05:30]} d5 {[%emt 0:05:30]} 18. g4 {[%emt 0:02:30]} d4 {[%emt 0:13:30]} 19. Bd3 {[%emt 0:20:30]} Qd6 {[%emt 0:16:30]} 20. Qxd6 {[%emt 0:11:30]} Rxd6 {[%emt 0:02:30]} 21. Rhg1 {[%emt 0:01:30]} Rad8 {[%emt 0:00:30]} 22. c4 {[%emt 0:06:30]} Bd7 {[%emt 0:06:30]} 23. b3 {[%emt 0:02:30]} Re8 {[%emt 0:02:30]} 24. Kc1 {[%emt 0:03:30]} Bc6 {[%emt 0:01:30]} 25. Rg3 {[%emt 0:02:30]} Kf8 {[%emt 0:03:30]} 26. g5 {[%emt 0:00:30]} Be4 {[%emt 0:01:30]} 27. gxh6 {[%emt 0:02:30]} Rxh6 {[%emt 0:01:30]} 28. Rdg1 {[%emt 0:00:30]} Bxd3 {[%emt 0:02:30]} 29. cxd3 {[%emt 0:00:30]} Rxh5 {[%emt 0:01:30]} 30. Rxg7 {[%emt 0:01:30]} Re2 {[%emt 0:00:30]} 31. Rg8+ {[%emt 0:01:30]} Ke7 {[%emt 0:00:30]} 32. Rb8 {[%emt 0:00:30]} Rxa2 {[%emt 0:03:30]} 33. Rxb7+ {[%emt 0:00:30]} Kf6 {[%emt 0:00:30]} 34. Kb1 {[%emt 0:03:30]} Rd2 {[%emt 0:02:30]} 35. Rxa7 {[%emt 0:01:30]} Rxd3 {[%emt 0:00:30]} 36. Ra6+ {[%emt 0:00:00]} Kf5 {[%emt 0:01:30]} 37. Rc6 {[%emt 0:00:00]} Rxb3+ {[%emt 0:01:30]} 38. Ka2 {[%emt 0:00:30]} Rhh3 {[%emt 0:00:30]} 39. Rxc5+ {[%emt 0:00:30]} Kf4 {[%emt 0:00:34]} 40. Rgg5 {[%emt 0:01:30]} Ra3+ {[%emt 0:01:53]} 41. Kb2 {[%emt 0:01:30]} Rhb3+ {[%emt 0:00:21]} 42. Kc1 {[%emt 0:00:00]} d3 {[%emt 0:04:48]} 43. Rb5 {[%emt 0:06:00]} Rc3+ {[%emt 0:08:10]} 44. Kb2 {[%emt 0:00:46]} d2 {[%emt 0:01:21]} 45. Rbf5+ {[%emt 0:07:59]} Ke4 {[%emt 0:01:00]} 46. Re5+ {[%emt 0:00:19]} Kf3 {[%emt 0:03:36]} 47. Rg3+ {[%emt 0:03:44]} Kxf2 {[%emt 0:00:31]} 48. Rxc3 {[%emt 0:00:02]} Rxc3 {[%emt 0:00:54]} 49. Kxc3 {[%emt 0:01:03]} d1=Q {[%emt 0:00:30]} 50. Rf5+ {[%emt 0:00:30]} Ke3 {[%emt 0:00:00]} 51. Rxf7 {[%emt 0:00:00]} Qd2+ {[%emt 0:01:46]} 52. Kb3 {[%emt 0:00:00]} Qd6 {[%emt 0:00:26]} 53. Rb7 {[%emt 0:01:56]} Qd3+ {[%emt 0:00:13]} 54. Ka4 {[%emt 0:01:11]} Qxc4+ {[%emt 0:00:30]} 55. Ka5 {[%emt 0:00:00]} Qc5+ {[%emt 0:00:15]} 56. Ka6 {[%emt 0:00:42]} Kd4 {[%emt 0:00:30]} 57. Rd7+ {[%emt 0:00:00]} Ke5 {[%emt 0:00:39]} 58. Kb7 {[%emt 0:00:05]} Ke6 {[%emt 0:00:30]} 59. Rc7 {[%emt 0:00:30]} Qa5 {[%emt 0:00:30]} 60. Rc2 {[%emt 0:00:30]} Qb4+ {[%emt 0:00:30]} 61. Kc8 {[%emt 0:00:30]} Kd6 {[%emt 0:00:30]} 62. Rc7 {[%emt 0:00:30]} Qb5 {[%emt 0:00:30]} 63. Kd8 {[%emt 0:00:30]} Qb6 {[%emt 0:00:30]} 0-1